[Event "Prague Festival-Masters 2022"]
[Site "Prague"]
[Date "2022.06.13"]
[Round "5.2"]
[White "Salem, A.R. Saleh"]
[Black "Nguyen, Thai Dai Van"]
[Result "1/2-1/2"]
[ECO "C54"]
[WhiteElo "2690"]
[BlackElo "2612"]
[Annotator "TA"]
[PlyCount "60"]
[EventDate "2022.06.07"]
[EventType "tourn"]
[EventCountry "CZE"]
[SourceTitle "playchess.com"]
[Source "ChessBase"]
[SourceQuality "1"]
[TimeControl "40/5400+30:1800+30"]

{[%evp 13,60,4,17,12,38,13,31,25,30,30,39,18,15,18,29,20,24,6,5,10,20,12,12,9,18,23,14,8,4,0,0,0,0,0,0,0,0,0,0,0,0,0,0,0,0,6,0,0,6]} 1. e4 {[%emt 0:00:02]} e5 {[%emt 0:00:45]} 2. Nf3 {[%emt 0:00:06]} Nc6 {[%emt 0:00:14]} 3. Bc4 {[%emt 0:00:06]} Bc5 {[%emt 0:00:28]} 4. d3 {[%emt 0:00:07]} Nf6 {[%emt 0:00:12]} 5. Bg5 {[%emt 0:00:08]} h6 {[%emt 0:02:13]} 6. Bh4 {[%emt 0:00:06]} d6 {[%emt 0:00:09]} 7. c3 {[%emt 0:00:08] now supersedes 7.h3.} a6 {[%emt 0:00:43]} 8. Nbd2 {[%emt 0:00:15][%cal Bb1d2,Bd2c4,Bc4b6][%mdl 32] C54: Giuoco Piano: 4 c3 Nf6, main lines with 5 d4 and 5 d3.} Ba7 {[%emt 0:00:21]} 9. O-O {[%emt 0:00:23]} Qe7 {[%emt 0:03:06]} 10. a4 {[%emt 0:00:17] White is slightly better.} Be6 {[%emt 0:01:50]} 11. b4 {[%emt 0:01:24][%cal Bb2b4,Bb4b5][%mdl 32]} O-O {[%emt 0:01:13]} 12. Re1 {[%emt 0:06:43]} Bxc4 {[%emt 0:02:09]} 13. Nxc4 {[%emt 0:00:30]} Qe6 {[%emt 0:00:12]} 14. b5 {[%emt 0:05:49]} Ne7 {[%emt 0:05:40][%cal Bc6e7,Be7g6,Bg6f4][%mdl 32]} 15. Bxf6 {[%emt 0:00:48]} Qxf6 {[%emt 0:00:06]} 16. Rb1 {[%emt 0:00:03]} Qe6 {[%emt 0:19:50] [#]} 17. b6 $146 {[%emt 0:04:40]} ({Predecessor:} 17. a5 axb5 18. Rxb5 Rab8 19. Qb3 Ng6 20. Nb6 Bxb6 21. axb6 c6 22. Qxe6 fxe6 23. Ra5 {0-1 (69) Vocaturo,D (2600)-Ostrovskiy,A (2438) Germany 2017}) 17... cxb6 {[%emt 0:00:13]} 18. Nxb6 {[%emt 0:00:13]} Rab8 {[%emt 0:00:11]} 19. Re2 {[%emt 0:16:27][%cal Be1e2,Be2b2,Bb2b3,Bb3b6,Bb6d6][%mdl 32]} Ng6 {[%emt 0:26:03]} 20. Reb2 {[%emt 0:08:04] The position is equal.} f5 {[%emt 0:05:32]} 21. Qb3 {[%emt 0:16:56]} Qxb3 {[%emt 0:00:08]} 22. Rxb3 {[%emt 0:00:01] [#] aiming for Nd7.} Bxb6 {[%emt 0:00:54]} 23. Rxb6 {[%emt 0:00:08]} Nf4 {[%emt 0:00:13]} 24. Rxd6 {[%emt 0:23:54]} fxe4 {[%emt 0:01:57]} 25. dxe4 {[%emt 0:05:30] Hoping for Kf1.} Ne2+ {[%emt 0:00:26]} 26. Kf1 {[%emt 0:00:03]} Nxc3 {[%emt 0:00:05]} 27. Rb4 {[%emt 0:00:10]} a5 {[%emt 0:14:18]} 28. Rc4 {[%emt 0:00:43]} Rbc8 {[%emt 0:00:08]} 29. Nxe5 {[%emt 0:01:08]} Rxc4 {[%emt 0:00:06]} 30. Nxc4 {[%emt 0:00:03]} Nxe4 {[%emt 0:00:06] Weighted Error Value: White=0.02 (flawless) /Black=0.02 (flawless)} 1/2-1/2

[Event "Prague Festival-Masters 2022"]
[Site "Prague"]
[Date "2022.06.13"]
[Round "5.3"]
[White "Le, Quang Liem"]
[Black "Anton Guijarro, David"]
[Result "1/2-1/2"]
[ECO "D43"]
[WhiteElo "2709"]
[BlackElo "2691"]
[Annotator "TA"]
[PlyCount "130"]
[EventDate "2022.06.07"]
[EventType "tourn"]
[EventCountry "CZE"]
[SourceTitle "playchess.com"]
[Source "ChessBase"]
[SourceQuality "1"]
[TimeControl "40/5400+30:1800+30"]

{[%evp 19,130,19,19,0,6,27,22,26,26,34,38,28,36,0,1,0,12,0,21,17,14,0,35,27,27,-22,-12,-15,-20,-2,-4,-16,-21,-16,-19,-120,-105,-91,-102,-112,-107,-102,-55,-60,-70,-70,-68,-77,-68,-54,-54,-54,-54,-72,-54,-54,0,-74,-74,-70,-69,-57,0,-46,0,-61,-14,-20,-14,-18,-18,-13,-14,-14,-20,-13,-14,-15,-15,-23,-20,-16,0,0,0,-12,0,0,0,-8,-8,-8,-8,-8,0,0,0,0,0,0,0,0,0,0,0,0,0,0,0,0,0,0,0]} 1. d4 {[%emt 0:00:04]} Nf6 {[%emt 0:00:23]} 2. c4 {[%emt 0:00:09]} e6 {[%emt 0:00:10]} 3. Nf3 {[%emt 0:00:16]} d5 {[%emt 0:00:33]} 4. Nc3 {[%emt 0:00:10]} c6 {[%emt 0:00:44]} 5. Bg5 {[%emt 0:00:11]} h6 {[%emt 0:00:31]} 6. Bxf6 {[%emt 0:00:20]} Qxf6 {[%emt 0:00:08]} 7. e3 {[%emt 0:00:08]} Nd7 {[%emt 0:02:48]} 8. Bd3 {[%emt 0:00:15]} dxc4 {[%emt 0:05:09]} 9. Bxc4 {[%emt 0:00:08]} g6 {[%emt 0:00:37]} 10. O-O {[%emt 0:00:13]} Bg7 {[%emt 0:00:24]} 11. Re1 {[%emt 0:00:12] D43: Semi-Slav: 5 Bg5 h6.} O-O {[%emt 0:02:09]} 12. e4 {[%emt 0:00:07]} e5 {[%emt 0:01:46][%cal Re5d4]} 13. d5 {[%emt 0:00:09]} Nb6 {[%emt 0:01:19]} 14. Bb3 {[%emt 0:00:09]} Rd8 {[%emt 0:03:17]} 15. h3 {[%emt 0:02:50]} a5 {[%emt 0:12:28]} 16. Rc1 {[%emt 0:03:27]} Bd7 {[%emt 0:01:45]} 17. a3 {[%emt 0:01:41]} a4 {[%emt 0:04:20]} 18. Ba2 {[%emt 0:00:46]} h5 {[%emt 0:11:36]} 19. Qe2 {[%emt 0:12:50]} Bh6 {[%emt 0:01:31]} 20. Rc2 {[%emt 0:02:45] [#]} h4 $146 {[%emt 0:04:43]} ({Predecessor:} 20... Rac8 21. dxc6 Rxc6 22. Bd5 Rc7 23. Rd1 Rdc8 24. Ba2 Bc6 25. Ne1 Kh7 26. Rd3 Qe7 {½-½ (36) Greig,S (2164)-Garau,B (2288) ICCF email 2014}) 21. dxc6 {[%emt 0:09:42]} Bxc6 {[%emt 0:02:45]} 22. Nd5 {[%emt 0:06:11]} (22. Nh2 $142) 22... Nxd5 $11 {[%emt 0:02:58]} 23. exd5 {[%emt 0:00:11]} Bxd5 {[%emt 0:00:23]} 24. Bxd5 {[%emt 0:00:12]} Rxd5 {[%emt 0:00:08]} 25. Nxe5 {[%emt 0:00:11]} Bg7 {[%emt 0:03:33]} 26. Nf3 {[%emt 0:02:48]} b5 {[%emt 0:00:53]} 27. Rd1 {[%emt 0:09:42]} (27. Qe4 $11 {keeps the balance.} Rad8 28. Qb4) 27... Rxd1+ $17 {[%emt 0:02:13]} 28. Qxd1 {[%emt 0:00:02]} Rd8 {[%emt 0:00:45]} 29. Qe2 {[%emt 0:04:34]} Qf4 {[%emt 0:01:47]} 30. Kf1 {[%emt 0:02:02] [#]} Rb8 {[%emt 0:18:12]} (30... Rd5 $1 $17) 31. Qd2 {[%emt 0:09:51]} Qe4 {[%emt 0:01:18]} 32. Qe2 {[%emt 0:00:17]} Qb7 {[%emt 0:05:14]} 33. Qd2 {[%emt 0:02:33]} Qe7 {[%emt 0:03:30]} 34. Qe2 {[%emt 0:01:58]} Qf6 {[%emt 0:01:17]} 35. Ne1 {[%emt 0:04:21]} Qd6 {[%emt 0:01:18]} 36. Rd2 {[%emt 0:02:08]} Qc7 {[%emt 0:02:47]} 37. Rc2 {[%emt 0:00:20] Inhibits Qc1.} Qd6 {[%emt 0:00:15]} 38. Rd2 $1 {[%emt 0:01:28]} Qf4 {[%emt 0:01:49]} 39. Qe3 {[%emt 0:05:03]} Qc4+ {[%emt 0:01:19]} 40. Qd3 {[%emt 0:00:00]} Qf4 {[%emt 0:00:00]} 41. Qe3 $1 {[%emt 0:01:16]} Qc4+ {[%emt 0:07:36]} 42. Qd3 $1 {[%emt 0:00:39]} Qc1 {[%emt 0:03:29]} (42... Qe6 $15) 43. Qc2 $11 {[%emt 0:07:08]} Qa1 {[%emt 0:01:01] [#] Hoping for ...Re8.} 44. Re2 {[%emt 0:00:08] Against Re8} Rd8 {[%emt 0:03:46]} 45. Qc6 {[%emt 0:06:17]} Bxb2 {[%emt 0:09:30]} 46. Qxb5 {[%emt 0:00:08]} Bc3 {[%emt 0:01:25]} 47. Qxa4 {[%emt 0:00:40]} Rd1 {[%emt 0:00:30][%cal Rd1e1]} 48. Qe8+ {[%emt 0:00:17]} Kg7 {[%emt 0:00:08]} 49. a4 {[%emt 0:01:44]} Qb1 {[%emt 0:01:39] Threatens to win with ...Qd3.} 50. g4 {[%emt 0:10:42] The position is equal.} Qb7 {[%emt 0:04:58][%cal Rb7h1]} 51. Qe4 {[%emt 0:02:59] Prevents Qh1+.} Qxe4 {[%emt 0:00:32]} 52. Rxe4 {[%emt 0:00:01][%mdl 4096] Endgame KRB-KRN} f5 {[%emt 0:01:01]} 53. gxf5 {[%emt 0:00:09]} gxf5 {[%emt 0:00:04]} 54. Re3 {[%emt 0:00:19]} Bb4 {[%emt 0:02:09]} 55. f4 {[%emt 0:00:18]} Ra1 {[%emt 0:00:30]} 56. Re2 {[%emt 0:00:43]} Bd6 {[%emt 0:00:40]} 57. Rf2 {[%emt 0:04:55]} Kf6 {[%emt 0:00:35]} 58. Ke2 {[%emt 0:00:30]} Rxa4 {[%emt 0:00:30]} 59. Ng2 {[%emt 0:02:00]} Ra2+ {[%emt 0:00:28]} 60. Kf1 {[%emt 0:00:18]} Ra1+ {[%emt 0:00:11]} 61. Ke2 {[%emt 0:00:13]} Bc5 {[%emt 0:00:39]} 62. Rf3 {[%emt 0:00:20]} Ra2+ {[%emt 0:00:21]} 63. Kf1 {[%emt 0:00:07]} Ra1+ {[%emt 0:00:07]} 64. Ke2 {[%emt 0:00:05]} Ra2+ {[%emt 0:00:37]} 65. Kf1 {[%emt 0:00:10]} Ra1+ {[%emt 0:01:49] Weighted Error Value: White=0.07 (flawless) /Black=0.07 (flawless)} 1/2-1/2

[Event "Prague Festival-Masters 2022"]
[Site "Prague"]
[Date "2022.06.13"]
[Round "5.4"]
[White "Vidit, Santosh Gujrathi"]
[Black "Maghsoodloo, Parham"]
[Result "1/2-1/2"]
[ECO "A31"]
[WhiteElo "2723"]
[BlackElo "2699"]
[Annotator "TA"]
[PlyCount "151"]
[EventDate "2022.06.07"]
[EventType "tourn"]
[EventCountry "CZE"]
[SourceTitle "playchess.com"]
[Source "ChessBase"]
[SourceQuality "1"]
[TimeControl "40/5400+30:1800+30"]

{[%evp 10,151,34,18,45,31,46,31,46,23,35,23,27,20,27,26,26,27,33,24,32,35,25,29,24,17,29,24,36,17,22,17,27,0,0,0,0,0,0,0,7,0,0,0,0,-8,-4,-33,-33,-49,0,0,0,-2,-8,-26,0,-1,-2,-6,-10,-164,-156,-153,-158,-154,-159,-134,-70,-78,-78,-77,-56,-56,-51,-165,-169,-161,-170,-154,-70,-70,-68,-148,-160,-227,-83,-88,-81,-89,-93,-93,-93,-93,-93,-93,-93,-93,-93,-93,-43,-43,-42,-42,-42,-42,-42,-46,-45,-46,-45,-45,-37,-44,-44,-52,-49,-41,-30,-35,-13,-14,-14,-13,0,0,0,0,0,-13,0,0,0,0,0,0,0,0,0,0,0,0,0,0]} 1. Nf3 {[%emt 0:00:20]} c5 {[%emt 0:04:11]} 2. c4 {[%emt 0:00:16]} Nc6 {[%emt 0:00:22]} 3. d4 {[%emt 0:00:36]} cxd4 {[%emt 0:01:57]} 4. Nxd4 {[%emt 0:00:09]} Qb6 {[%emt 0:05:00]} 5. e3 {[%emt 0:04:25]} Nf6 {[%emt 0:03:39]} 6. Nc3 {[%emt 0:01:09]} g6 {[%emt 0:00:24] A31: Symmetrical English: 2 Nf3 Nf6 3 d4.} 7. Be2 {[%emt 0:00:58]} Bg7 {[%emt 0:00:22]} 8. O-O {[%emt 0:00:15]} O-O {[%emt 0:00:09] White is slightly better.} 9. b3 {[%emt 0:11:50]} d5 {[%emt 0:15:00] [#]} 10. Nxc6 $146 {[%emt 0:19:27]} ({Predecessor:} 10. cxd5 Nxd4 11. exd4 Qa5 12. Bd2 Nxd5 13. Rc1 Nxc3 14. Bxc3 Qb6 15. d5 Rd8 16. Qd2 Bxc3 17. Rxc3 {½-½ (28) Dimazana,E (2291)-Gelman,M (2097) San Antonio 1997}) 10... bxc6 {[%emt 0:00:11]} 11. Bb2 {[%emt 0:00:24]} Rd8 {[%emt 0:08:47]} 12. Na4 {[%emt 0:03:04]} Qc7 {[%emt 0:06:51][%cal Od5d4]} 13. Qc1 {[%emt 0:06:17]} Qb8 {[%emt 0:05:59]} 14. Qc3 {[%emt 0:05:48]} Bf5 {[%emt 0:05:54]} 15. Rfd1 {[%emt 0:02:20]} Ne8 {[%emt 0:01:58]} 16. Qa5 {[%emt 0:01:38][%cal Rc4d5]} Bxb2 {[%emt 0:00:05]} 17. Nxb2 {[%emt 0:00:09][%cal Rc4d5]} Nf6 {[%emt 0:00:02]} 18. Rac1 {[%emt 0:04:32]} Qe5 {[%emt 0:04:51]} 19. Qc3 {[%emt 0:08:36]} (19. Nd3 {seems wilder.} Bxd3 20. Rxd3 Ne4 21. Bf3) 19... Qxc3 {[%emt 0:01:49]} 20. Rxc3 {[%emt 0:00:02]} e5 {[%emt 0:00:07]} 21. f3 {[%emt 0:07:05]} d4 {[%emt 0:01:44]} 22. exd4 {[%emt 0:00:07]} exd4 {[%emt 0:00:05]} 23. Rcc1 {[%emt 0:00:06]} c5 {[%emt 0:00:08]} 24. g4 {[%emt 0:07:51]} Be6 {[%emt 0:00:34]} 25. Nd3 {[%emt 0:00:16]} Rac8 {[%emt 0:01:24]} 26. Kf2 {[%emt 0:01:23]} a5 {[%emt 0:00:06]} 27. a3 {[%emt 0:00:46]} Nd7 {[%emt 0:00:18][%cal Oa5a4]} 28. Rd2 {[%emt 0:02:34]} a4 {[%emt 0:06:05]} 29. bxa4 {[%emt 0:00:47]} Nb6 {[%emt 0:00:17]} (29... Ra8 $15 {is more appropriate.} 30. Bd1 Rdb8) 30. a5 {[%emt 0:01:51]} Na4 {[%emt 0:00:42]} 31. Bd1 {[%emt 0:04:26]} Nc3 {[%emt 0:00:23]} 32. Bb3 {[%emt 0:00:06][%cal Od3c5]} Rd7 {[%emt 0:00:49][%mdl 1024] Black has compensation.} 33. a6 $1 {[%emt 0:00:38]} Kf8 {[%emt 0:04:46][%cal Bg8f8,Bf8e7,Be7d6,Bd6c7][%mdl 32]} 34. Re1 {[%emt 0:06:13]} Ke7 {[%emt 0:01:13]} 35. f4 $2 {[%emt 0:00:53]} (35. Nf4 $1 $11 {and White stays safe.}) 35... Kd6 $19 {[%emt 0:00:29]} 36. f5 {[%emt 0:00:40]} gxf5 {[%emt 0:00:12]} 37. gxf5 {[%emt 0:00:28]} Bxf5 {[%emt 0:00:31] aiming for ...Ne4+.} 38. Nxc5 {[%emt 0:00:33]} Rxc5 {[%emt 0:03:52]} (38... Kxc5 $17 39. Re5+ Kb6 40. Rxf5 Ne4+ 41. Ke1 Nxd2 42. Kxd2 Re7) 39. Rxd4+ $15 {[%emt 0:00:01]} Kc7 {[%emt 0:00:06]} 40. Rxd7+ {[%emt 0:00:00]} Kxd7 {[%emt 0:00:00]} 41. a7 $1 {[%emt 0:02:01]} Ne4+ {[%emt 0:25:15]} 42. Ke3 {[%emt 0:07:45]} ({Only move:} 42. Kg2 $1 $15 Rc8 43. Ba4+ Kc7 44. Bc2 Rg8+ 45. Kf1 Nd2+ 46. Ke2 Bxc2 47. Kxd2) 42... Ra5 $19 {[%emt 0:00:22][%csl LRa3,LRa7]} 43. Rd1+ {[%emt 0:03:48] [#]} Ke6 $1 {[%emt 0:03:21]} 44. c5+ {[%emt 0:04:06]} Ke5 {[%emt 0:10:12]} (44... Ke7 $17 45. Bd5 (45. Rf1 $2 Bg6 $19) 45... Nc3) 45. Rd5+ $15 {[%emt 0:01:42]} Kf6 {[%emt 0:00:01] Hoping for ...Nc3.} 46. Bc2 {[%emt 0:12:26] [#]} (46. Kf4 $15 Bg6 47. h4 (47. Bc2 $2 Ng5 $19)) 46... Ng3 $1 $17 {[%emt 0:00:46]} (46... Rxa3+ 47. Kf4 Be6 48. Rd8 Rxa7 49. Bxe4 $11) 47. Rd6+ {[%emt 0:01:28]} (47. hxg3 $17 {might work better.} Bxc2 48. Rd7) 47... Ke7 {[%emt 0:06:18]} (47... Ke5 $19 {has better winning chances.} 48. hxg3 Bxc2) 48. Bd1 {[%emt 0:01:22]} (48. hxg3 $2 Bxc2 49. Kd2 Bg6 $19) 48... Ne4 {[%emt 0:01:47]} 49. Bf3 {[%emt 0:00:33]} Nxc5 {[%emt 0:00:32]} ({Much worse is} 49... Nxd6 50. cxd6+ Kxd6 51. a8=Q Rxa8 52. Bxa8 $11) 50. Rd5 {[%emt 0:00:17] Threatens to win with Rxc5.} Rxa3+ {[%emt 0:00:28]} 51. Ke2 {[%emt 0:00:43] [#]} Ne6 {[%emt 0:02:09]} 52. Rxf5 {[%emt 0:00:08][%mdl 4096] Endgame KRB-KRN} Nd4+ {[%emt 0:00:07]} 53. Kf2 {[%emt 0:00:58][%cal Of5f7]} Ra2+ {[%emt 0:00:52]} ({Much weaker is} 53... Nxf3 $6 54. a8=Q Rxa8 55. Kxf3 $15) ({But not} 53... Rxa7 $6 54. Rh5 $11) 54. Kf1 {[%emt 0:00:19][%cal Of5f7]} Rxa7 {[%emt 0:01:40]} ({Black should play} 54... Nxf5 $17 55. a8=Q Rxa8 56. Bxa8 Kd6) 55. Rf4 $15 {[%emt 0:00:35]} Ra1+ {[%emt 0:00:06]} 56. Kf2 {[%emt 0:00:24]} Ra2+ {[%emt 0:00:01]} 57. Kg3 {[%emt 0:00:54]} Rd2 {[%emt 0:00:05] White must now prevent ...Rd3.} 58. Bh5 {[%emt 0:00:28]} f5 {[%emt 0:00:09]} 59. Rh4 {[%emt 0:00:31]} Kf6 {[%emt 0:00:27]} 60. Be8 {[%emt 0:00:20]} Kg7 {[%emt 0:01:16]} 61. Kf4 {[%emt 0:00:36]} Re2 {[%emt 0:00:52]} 62. Bh5 {[%emt 0:00:34]} Re4+ {[%emt 0:00:48]} 63. Kg3 {[%emt 0:00:05]} Kh6 {[%emt 0:01:02][%cal Of5f4] Strongly threatening ...f4+!} 64. Bd1+ {[%emt 0:00:50]} Kg5 {[%emt 0:00:01]} 65. Rxh7 {[%emt 0:00:19] The position is equal.} Re1 {[%emt 0:00:07]} 66. Bh5 {[%emt 0:00:34]} f4+ {[%emt 0:00:34]} 67. Kf2 {[%emt 0:00:13]} Rc1 {[%emt 0:00:30]} 68. Rd7 {[%emt 0:00:45]} Rc2+ {[%emt 0:00:06]} 69. Ke1 {[%emt 0:00:16]} Nf5 {[%emt 0:02:21]} 70. Be2 {[%emt 0:00:12]} Ne3 {[%emt 0:00:04]} 71. h3 {[%emt 0:00:40]} Rc1+ {[%emt 0:01:26]} 72. Kf2 {[%emt 0:00:07]} Rh1 {[%emt 0:00:05]} 73. Bg4 {[%emt 0:01:10]} Rf1+ {[%emt 0:00:45]} 74. Ke2 {[%emt 0:00:04]} Kh4 {[%emt 0:00:28]} 75. Rg7 {[%emt 0:00:53]} Rg1 {[%emt 0:00:35][%cal Re3g4]} 76. Kf3 {[%emt 0:00:08] And White is the lucky defender.  Weighted Error Value: White=0.13 (very precise) /Black=0.09 (flawless)} 1/2-1/2

[Event "Prague Festival-Masters 2022"]
[Site "Prague"]
[Date "2022.06.13"]
[Round "5.5"]
[White "Vallejo Pons, Francisco"]
[Black "Shankland, Sam"]
[Result "1/2-1/2"]
[ECO "C47"]
[WhiteElo "2704"]
[BlackElo "2718"]
[Annotator "TA"]
[PlyCount "26"]
[EventDate "2022.06.07"]
[EventType "tourn"]
[EventCountry "CZE"]
[SourceTitle "playchess.com"]
[Source "ChessBase"]
[SourceQuality "1"]
[TimeControl "40/5400+30:1800+30"]

{[%evp 16,26,18,14,12,0,0,0,20,0,8,0,8]} 1. e4 {[%emt 0:00:48]} e5 {[%emt 0:00:11]} 2. Nf3 {[%emt 0:00:11]} Nc6 {[%emt 0:00:04]} 3. Nc3 {[%emt 0:00:17]} Nf6 {[%emt 0:00:07]} 4. g3 {[%emt 0:00:12]} d5 {[%emt 0:01:28]} 5. exd5 {[%emt 0:00:13]} Nxd5 {[%emt 0:00:03]} 6. Bg2 {[%emt 0:00:14]} Nxc3 {[%emt 0:00:07]} 7. bxc3 {[%emt 0:00:06]} Bd6 {[%emt 0:00:12]} 8. O-O {[%emt 0:01:21]} O-O {[%emt 0:00:46]} 9. d4 {[%emt 0:01:25] The position is equal.} Bf5 {[%emt 0:06:54] [#] C47: Scotch Four Knights and Four Knights with 4 g3.} 10. Nh4 $5 $146 {[%emt 0:04:13][%mdl 8] New and interesting.} ({Predecessor:} 10. Rb1 Rb8 11. Re1 Re8 12. dxe5 Nxe5 13. Nxe5 Rxe5 14. Rxe5 Bxe5 15. Qe2 Bxc3 16. Rxb7 Rxb7 17. Bxb7 h6 18. Qf3 Qf6 19. Be4 Bxe4 20. Qxe4 {½-½ (27) Lu,S (2620)-Zhou,W (2606) China 2017}) 10... Bd7 {[%emt 0:01:49]} 11. Nf3 {[%emt 0:13:27]} Bf5 {[%emt 0:05:36]} 12. Nh4 {[%emt 0:01:34]} Bd7 {[%emt 0:00:07]} 13. Nf3 {[%emt 0:00:03]} Bf5 {[%emt 1:19:36] An uneventful encounter.  Weighted Error Value: White=0.09 (flawless) /Black=0.00 (flawless)} 1/2-1/2

[Event "Prague Festival-Masters 2022"]
[Site "Prague"]
[Date "2022.06.14"]
[Round "6.1"]
[White "Le, Quang Liem"]
[Black "Salem, A.R. Saleh"]
[Result "1-0"]
[ECO "E92"]
[WhiteElo "2709"]
[BlackElo "2690"]
[Annotator "TA"]
[PlyCount "103"]
[EventDate "2022.06.07"]
[EventType "tourn"]
[EventCountry "CZE"]
[SourceTitle "playchess.com"]
[Source "ChessBase"]
[SourceQuality "1"]
[TimeControl "40/5400+30:1800+30"]

{[%evp 20,103,31,22,34,38,30,35,37,31,51,51,51,51,89,38,112,109,104,67,71,74,85,78,85,68,92,34,60,39,34,34,42,37,75,29,3,0,0,0,0,0,0,-75,-86,-81,0,-17,0,-87,-56,-171,-120,-169,-169,-150,0,0,0,39,175,154,153,47,35,31,101,12,38,0,0,0,130,140,255,47,64,65,428,428,428,418,398,362,12829,2785]} 1. Nf3 {[%emt 0:00:03]} Nf6 {[%emt 0:00:03]} 2. c4 {[%emt 0:00:25]} g6 {[%emt 0:00:13]} 3. Nc3 {[%emt 0:00:08]} Bg7 {[%emt 0:00:05]} 4. e4 {[%emt 0:00:10]} d6 {[%emt 0:00:04]} 5. d4 {[%emt 0:00:09]} O-O {[%emt 0:00:06]} 6. Be2 {[%emt 0:00:35]} e5 {[%emt 0:00:09]} 7. d5 {[%emt 0:00:13]} a5 {[%emt 0:00:40]} 8. Bg5 {[%emt 0:00:28]} h6 {[%emt 0:00:08]} 9. Bh4 {[%emt 0:00:16]} Na6 {[%emt 0:00:48]} 10. Nd2 {[%emt 0:00:32]} Qe8 {[%emt 0:01:21]} 11. a3 {[%emt 0:00:36]} Bd7 {[%emt 0:01:01] E92: King's Indian: Classical: 6 Be2 e5: 7 dxe5, 7 Be3 and Petrosian System without 7...Nbd7.} 12. Qc2 {[%emt 0:01:10]} Nc5 {[%emt 0:01:51]} 13. f3 {[%emt 0:03:06] [#]} Nh5 $146 {[%emt 0:01:33] White is slightly better.} ({Predecessor:} 13... a4 14. Bf2 Qb8 15. O-O-O c6 16. h4 cxd5 17. exd5 Rc8 18. Bxc5 Rxc5 19. g4 e4 20. Ndxe4 Nxe4 21. Nxe4 {½-½ (35) Robin,J (2135)-Walton,J (2114) FICGS email 2020}) 14. Bf2 {[%emt 0:00:55]} f5 {[%emt 0:04:29]} 15. Bxc5 {[%emt 0:03:43]} dxc5 {[%emt 0:00:07]} 16. O-O-O {[%emt 0:00:19]} a4 {[%emt 0:10:03]} 17. Kb1 {[%emt 0:04:41]} (17. exf5 $16 gxf5 18. g3) 17... Qd8 {[%emt 0:01:05]} (17... f4 $14) 18. exf5 $1 $16 {[%emt 0:12:30]} gxf5 {[%emt 0:00:37]} 19. Rhe1 {[%emt 0:00:10]} Nf4 {[%emt 0:03:58]} 20. Bf1 {[%emt 0:00:10]} Ra6 {[%emt 0:00:09]} 21. g3 {[%emt 0:01:10]} Ng6 {[%emt 0:02:53]} 22. Ka2 {[%emt 0:02:11]} h5 {[%emt 0:02:55]} 23. Ndb1 {[%emt 0:04:32]} (23. Be2 $16) 23... e4 $14 {[%emt 0:04:26]} 24. fxe4 {[%emt 0:01:22]} f4 $1 {[%emt 0:00:04]} 25. gxf4 {[%emt 0:06:26]} Rxf4 {[%emt 0:00:58]} 26. Nb5 {[%emt 0:01:12]} Be5 {[%emt 0:03:56]} 27. N1c3 {[%emt 0:15:35]} (27. Be2 $16) 27... Raf6 $11 {[%emt 0:01:08] Inhibits d6.} 28. Nxa4 {[%emt 0:00:28]} Rf2 {[%emt 0:02:42]} 29. Be2 {[%emt 0:07:33]} b6 {[%emt 0:04:00]} 30. Nac3 {[%emt 0:01:17]} Rxh2 {[%emt 0:04:06]} 31. Na7 {[%emt 0:04:40]} (31. Rd2 $1 $11) 31... Rff2 $1 $17 {[%emt 0:14:04] And now ...Bxc3 would win.} 32. Nc6 {[%emt 0:01:53]} Bxc6 {[%emt 0:05:38]} ({Black should play} 32... Qf6 $1 $17 {...Bxc3 is the strong threat.} 33. Nxe5 Nxe5) 33. dxc6 $11 {[%emt 0:00:03]} Qf6 {[%emt 0:00:57]} 34. Nd5 {[%emt 0:00:52]} (34. Rg1 $1 $11) 34... Qg5 $1 $17 {[%emt 0:00:55][%mdl 1024] Black has strong compensation.} (34... Qxc6 $6 35. Rd2 $11) 35. Qd3 {[%emt 0:09:39]} (35. Rd2 $15) 35... Kh8 $19 {[%emt 0:11:01]} 36. Kb3 {[%emt 0:05:36]} (36. Qc2 $17 {was worth a try.}) 36... h4 {[%emt 0:06:24]} 37. Ka4 {[%emt 0:00:56]} Rf8 {[%emt 0:06:51]} (37... Rhg2 $1 $17 {Strongly threatening ...Rg3.} 38. Ne3 Rg3 39. Qd8+ Rf8 40. Qxg5 Rxg5) 38. Rg1 {[%emt 0:04:23]} Qh6 {[%emt 0:00:01]} 39. Rdf1 {[%emt 0:03:40]} Bd4 {[%emt 0:04:55]} (39... Rd8 $14) 40. Rxf8+ $1 $18 {[%emt 0:00:00]} (40. Nxc7 $2 Bxg1 41. Ne6 Ra8+ 42. Kb3 Qe3 43. Qxe3 Bxe3 $19) 40... Nxf8 {[%emt 0:00:00]} 41. Rf1 {[%emt 0:05:08] White is more active.} (41. Rg4 $1 $16 {aiming for e5.} Qxc6+ 42. Kb3) 41... Qxc6+ $14 {[%emt 0:06:46]} 42. Kb3 {[%emt 0:00:59]} Ng6 {[%emt 0:09:21]} ({Better is} 42... Nh7 $1 $14) 43. Qf3 {[%emt 0:17:03]} (43. Rf5 $1 $16 {[%cal Rf5h5]}) 43... Qd6 {[%emt 0:02:24]} (43... Qe6 $5 {[%cal Rh2h3]} 44. Nf4 Nxf4 45. Qxf4 Rh3+ 46. Ka2 Bg7 $14) 44. Ka2 {[%emt 0:00:52]} (44. Qf5 $5 {[%cal Re4e5]}) 44... c6 $1 {[%emt 0:11:34]} 45. Ne3 $36 {[%emt 0:00:37][%mdl 2048] Black must now prevent Qh5+. White is pushing.} (45. Nxb6 Qg3 46. Qf5 Bxb2 47. Qh5+ Kg7 48. Kxb2 Qg2 $17) (45. Qh5+ $2 Kg7 46. Nxb6 Bxb2 $1 $19) 45... Bxe3 {[%emt 0:02:16]} (45... Bg7 $1 $11 46. Qh5+ Kg8) 46. Qxe3 $16 {[%emt 0:00:02]} Kg7 {[%emt 0:00:05] Inhibits Qh6+.} (46... Ne5 $2 47. Rf5 Rxe2 48. Qxe2 $18) (46... Rg2 $16 {might work better.}) 47. Rg1 $2 {[%emt 0:02:01]} ({Only move:} 47. Rf5 $1 $18) 47... Qe5 $14 {[%emt 0:00:26]} (47... Qd4 $2 48. Qxd4+ cxd4 49. Bh5 $18) 48. Qf3 $1 {[%emt 0:01:15]} Kh6 $2 {[%emt 0:03:39][%mdl 8192]} (48... Qf6 $2 49. Qg4 (49. Qh5 Rh3 $16) 49... Rf2 50. e5 $18) ({Black should try} 48... h3 $14) 49. Qf7 $18 {[%emt 0:00:13][%csl Gf7][%cal Rg1g6]} Nf4 {[%emt 0:00:36]} (49... Ne7 $2 50. Rg7 $3 {[%mdl 512]} Qxe4 51. Rg4 $1 (51. Qxe7 Qxe7 52. Rxe7 Rf2 $18) 51... Qxg4 52. Bxg4) 50. Qf8+ {[%emt 0:01:33]} Kh7 {[%emt 0:00:01] [#]} 51. Rd1 $1 {[%emt 0:01:00] Intending Rd7+ and mate. The board is on fire.} Nd5 $2 {[%emt 0:01:41] [#]} (51... Nxe2 {leads to mate.} 52. Rd7+ Kg6 53. Qg8+) (51... Nh5 52. Rd7+ Ng7) 52. Rf1 $1 {[%emt 0:02:40] Quite a comeback for White.  Weighted Error Value: White=0.26 (precise) /Black=0.37} 1-0